[Event "XII Sabadell Open 2019"]
[Site "Sabadell"]
[Date "2019.09.07"]
[Round "6.14"]
[White "Prada Villagrasa, Pau Manel"]
[Black "Menendez Cabrera, Enric"]
[Result "0-1"]
[ECO "A05"]
[WhiteElo "1475"]
[BlackElo "1558"]
[Annotator "NA"]
[PlyCount "138"]
[EventDate "2019.09.01"]
[EventCountry "ESP"]
[SourceTitle "playchess.com"]
[Source "ChessBase"]
[SourceQuality "1"]
[TimeControl "5400+30"]

1. Nf3 {[%emt 0:00:00]} Nf6 {[%emt 0:00:42]} 2. b3 {[%emt 0:01:19]} d6 {[%emt 0:00:06]} 3. Bb2 {[%emt 0:00:00]} e5 {[%emt 0:01:03]} 4. e3 {[%emt 0:00:00]} Nbd7 {[%emt 0:02:36]} 5. d4 {[%emt 0:01:36]} e4 {[%emt 0:00:31]} 6. Nfd2 {[%emt 0:01:10]} d5 {[%emt 0:01:35]} 7. c4 {[%emt 0:01:04]} c6 {[%emt 0:00:00]} 8. Be2 {[%emt 0:02:57]} a6 {[%emt 0:00:44]} 9. Qc2 {[%emt 0:01:49]} Be7 {[%emt 0:00:45]} 10. O-O {[%emt 0:01:25]} O-O {[%emt 0:02:14]} 11. Re1 {[%emt 0:04:02]} Re8 {[%emt 0:00:28]} 12. Nf1 {[%emt 0:00:49]} Nf8 {[%emt 0:00:42]} 13. Nbd2 {[%emt 0:04:17]} Ng6 {[%emt 0:00:28]} 14. Ng3 {[%emt 0:00:00]} Bf8 {[%emt 0:05:29]} 15. Rac1 {[%emt 0:00:00]} Bd7 {[%emt 0:06:02]} 16. cxd5 {[%emt 0:05:06]} cxd5 {[%emt 0:04:56]} 17. Qc7 {[%emt 0:08:39]} Qxc7 {[%emt 0:00:00]} 18. Rxc7 {[%emt 0:00:09]} Bc6 {[%emt 0:01:19]} 19. Nb1 {[%emt 0:01:23]} Bd6 {[%emt 0:01:12]} 20. Rxc6 {[%emt 0:01:19]} bxc6 {[%emt 0:00:00]} 21. Rc1 {[%emt 0:01:03]} Rec8 {[%emt 0:01:33]} 22. Nf5 {[%emt 0:01:12]} Bf8 {[%emt 0:00:32]} 23. Ba3 {[%emt 0:00:26]} Bxa3 {[%emt 0:00:00]} 24. Nxa3 {[%emt 0:00:34]} Kf8 {[%emt 0:00:00]} 25. Nd6 {[%emt 0:00:54]} Rc7 {[%emt 0:00:36]} 26. b4 {[%emt 0:01:19]} Ne8 {[%emt 0:00:00]} 27. Nxe8 {[%emt 0:00:49]} Kxe8 {[%emt 0:01:50]} 28. h3 {[%emt 0:02:48]} Kd7 {[%emt 0:00:00]} 29. Bg4+ {[%emt 0:00:27]} Kd6 {[%emt 0:00:00]} 30. Nc2 {[%emt 0:00:54]} Ne7 {[%emt 0:00:00]} 31. a4 {[%emt 0:01:08]} a5 {[%emt 0:00:00]} 32. Rb1 {[%emt 0:02:51]} axb4 {[%emt 0:00:08]} 33. Rxb4 {[%emt 0:00:27]} Rca7 {[%emt 0:00:00]} 34. Rb2 {[%emt 0:00:57]} Rxa4 {[%emt 0:00:00]} 35. Rb7 {[%emt 0:00:30]} R4a7 {[%emt 0:00:00]} 36. Rb6 {[%emt 0:00:57]} f5 {[%emt 0:00:00]} 37. Bh5 {[%emt 0:01:39]} g6 {[%emt 0:00:34]} 38. Bd1 {[%emt 0:00:46]} Ra1 {[%emt 0:00:00]} 39. Nxa1 {[%emt 0:00:30]} Rxa1 {[%emt 0:00:00]} 40. Kf1 {[%emt 0:00:06]} Rxd1+ {[%emt 0:00:00]} 41. Ke2 {[%emt 0:00:07]} Ra1 {[%emt 0:00:00]} 42. Rb7 {[%emt 0:00:41]} h5 {[%emt 0:00:13]} 43. Rb8 {[%emt 0:02:42]} Ra2+ {[%emt 0:02:38]} 44. Ke1 {[%emt 0:00:00]} Ra5 {[%emt 0:01:12]} 45. Rf8 {[%emt 0:02:13]} Ra7 {[%emt 0:00:37]} 46. Rf6+ {[%emt 0:00:00]} Kd7 {[%emt 0:01:04]} 47. h4 {[%emt 0:00:00]} Ra8 {[%emt 0:01:21]} 48. Kf1 {[%emt 0:01:08]} Rg8 {[%emt 0:01:26]} 49. Ke2 {[%emt 0:00:38]} Rg7 {[%emt 0:00:48]} 50. f3 {[%emt 0:03:12]} Ke8 {[%emt 0:02:51]} 51. Kf2 {[%emt 0:00:00]} Rf7 {[%emt 0:00:37]} 52. Rd6 {[%emt 0:00:00]} Rg7 {[%emt 0:03:24]} 53. Kg3 {[%emt 0:01:16]} g5 {[%emt 0:01:32]} 54. Kh2 {[%emt 0:00:40]} Rg6 {[%emt 0:00:54]} 55. Rxg6 {[%emt 0:00:52]} Nxg6 {[%emt 0:00:09]} 56. hxg5 {[%emt 0:00:08]} Kd7 {[%emt 0:00:40]} 57. Kh3 {[%emt 0:01:38]} Ke6 {[%emt 0:00:59]} 58. g4 {[%emt 0:01:10]} hxg4+ {[%emt 0:00:18]} 59. fxg4 {[%emt 0:00:43]} f4 {[%emt 0:00:28]} 60. exf4 {[%emt 0:00:40]} Nxf4+ {[%emt 0:02:42]} 61. Kh4 {[%emt 0:04:35]} e3 {[%emt 0:00:00]} 62. Kg3 {[%emt 0:00:30]} e2 {[%emt 0:00:00]} 63. Kf2 {[%emt 0:00:06]} Kf7 {[%emt 0:00:00]} 64. Ke1 {[%emt 0:01:17]} Kg6 {[%emt 0:00:23]} 65. Kf2 {[%emt 0:00:49]} Kxg5 {[%emt 0:00:00]} 66. Kf3 {[%emt 0:00:06]} Kh4 {[%emt 0:00:00]} 67. Kf2 {[%emt 0:01:29]} Kxg4 {[%emt 0:00:00]} 68. Ke1 {[%emt 0:00:11]} Kf3 {[%emt 0:00:26]} 69. Kd2 {[%emt 0:00:17]} Kf2 {[%emt 0:00:35]} 0-1

[Event "XII Sabadell Open 2019"]
[Site "Sabadell"]
[Date "2019.09.07"]
[Round "6.15"]
[White "Tortosa Moros, Joan"]
[Black "Fernandez Pintado, Xavier"]
[Result "1-0"]
[ECO "B52"]
[WhiteElo "1647"]
[BlackElo "1590"]
[Annotator "NA"]
[PlyCount "115"]
[EventDate "2019.09.01"]
[EventCountry "ESP"]
[SourceTitle "playchess.com"]
[Source "ChessBase"]
[SourceQuality "1"]
[TimeControl "5400+30"]

1. e4 {[%emt 0:01:40]} c5 {[%emt 0:00:08]} 2. Nf3 {[%emt 0:00:02]} d6 {[%emt 0:00:30]} 3. Bb5+ {[%emt 0:00:28]} Bd7 {[%emt 0:00:19]} 4. Bxd7+ {[%emt 0:00:07]} Nxd7 {[%emt 0:00:18]} 5. c4 {[%emt 0:00:51]} e5 {[%emt 0:00:10]} 6. Nc3 {[%emt 0:00:30]} Ngf6 {[%emt 0:01:12]} 7. O-O {[%emt 0:00:29]} Be7 {[%emt 0:00:08]} 8. d3 {[%emt 0:00:40]} O-O {[%emt 0:06:22]} 9. Bg5 {[%emt 0:00:33]} h6 {[%emt 0:05:41]} 10. Bxf6 {[%emt 0:00:21]} Nxf6 {[%emt 0:03:31]} 11. Nd2 {[%emt 0:00:06]} a6 {[%emt 0:00:25]} 12. f4 {[%emt 0:02:21]} Qd7 {[%emt 0:02:21]} 13. fxe5 {[%emt 0:04:14]} dxe5 {[%emt 0:00:41]} 14. Nf3 {[%emt 0:00:28]} Bd6 {[%emt 0:01:58]} 15. h3 {[%emt 0:00:15]} b5 {[%emt 0:00:18]} 16. Nd5 {[%emt 0:01:48]} Nxd5 {[%emt 0:06:24]} 17. exd5 {[%emt 0:00:16]} f5 {[%emt 0:00:32]} 18. Re1 {[%emt 0:04:14]} Rae8 {[%emt 0:02:34]} 19. Qc2 {[%emt 0:00:37]} Rf6 {[%emt 0:00:27]} 20. b3 {[%emt 0:01:02]} Qe7 {[%emt 0:06:16]} 21. Nd2 {[%emt 0:00:48]} e4 {[%emt 0:02:17]} 22. dxe4 {[%emt 0:10:36]} Qd7 {[%emt 0:02:27]} 23. exf5 {[%emt 0:02:50]} Rxe1+ {[%emt 0:00:19]} 24. Rxe1 {[%emt 0:03:50]} Rxf5 {[%emt 0:07:53]} 25. Re6 {[%emt 0:06:22]} Re5 {[%emt 0:02:15]} 26. Rxe5 {[%emt 0:01:38]} Bxe5 {[%emt 0:00:14]} 27. Nf3 {[%emt 0:01:42]} Qe7 {[%emt 0:02:58]} 28. Qf5 {[%emt 0:04:16]} Bf6 {[%emt 0:03:14]} 29. Qc8+ {[%emt 0:02:53]} Kh7 {[%emt 0:03:26]} 30. Qf5+ {[%emt 0:03:29]} Kg8 {[%emt 0:00:20]} 31. Qd3 {[%emt 0:03:22]} Qd6 {[%emt 0:02:09]} 32. Kh1 {[%emt 0:01:27]} b4 {[%emt 0:01:14]} 33. Nd2 {[%emt 0:03:00]} Bd4 {[%emt 0:01:56]} 34. Qf3 {[%emt 0:06:43]} Qf6 {[%emt 0:00:56]} 35. Qxf6 {[%emt 0:00:39]} gxf6 {[%emt 0:01:19]} 36. g4 {[%emt 0:00:24]} Kf7 {[%emt 0:00:09]} 37. Kg2 {[%emt 0:02:33]} Kg6 {[%emt 0:00:26]} 38. Ne4 {[%emt 0:05:18]} f5 {[%emt 0:00:16]} 39. gxf5+ {[%emt 0:00:39]} Kxf5 {[%emt 0:00:33]} 40. Kf3 {[%emt 0:00:18]} Ke5 {[%emt 0:01:49]} 41. Ng3 {[%emt 0:01:26]} Bb2 {[%emt 0:01:53]} 42. h4 {[%emt 0:01:18]} Bc1 {[%emt 0:00:16]} 43. Kg4 {[%emt 0:02:00]} Be3 {[%emt 0:02:22]} 44. h5 {[%emt 0:00:41]} Bg5 {[%emt 0:01:39]} 45. Kf3 {[%emt 0:02:14]} Be7 {[%emt 0:02:10]} 46. Ne4 {[%emt 0:00:41]} a5 {[%emt 0:01:33]} 47. Nf2 {[%emt 0:00:20]} Bg5 {[%emt 0:01:18]} 48. Ng4+ {[%emt 0:00:25]} Kd4 {[%emt 0:00:37]} 49. d6 {[%emt 0:00:47]} a4 {[%emt 0:01:10]} 50. d7 {[%emt 0:01:00]} axb3 {[%emt 0:00:16]} 51. axb3 {[%emt 0:00:21]} Kc3 {[%emt 0:00:37]} 52. Nxh6 {[%emt 0:02:30]} Kxb3 {[%emt 0:00:31]} 53. Nf7 {[%emt 0:00:05]} Bf6 {[%emt 0:01:23]} 54. h6 {[%emt 0:00:31]} Kc2 {[%emt 0:03:41]} 55. h7 {[%emt 0:00:20]} b3 {[%emt 0:00:14]} 56. h8=Q {[%emt 0:01:34]} Bxh8 {[%emt 0:00:14]} 57. d8=Q {[%emt 0:02:14]} b2 {[%emt 0:03:10]} 58. Qxh8 {[%emt 0:00:42]} 1-0

[Event "XII Sabadell Open 2019"]
[Site "Sabadell"]
[Date "2019.09.08"]
[Round "7.2"]
[White "Oliva Castaneda, Kevel"]
[Black "Valderrama Quiceno, Esteban Alb"]
[Result "1/2-1/2"]
[ECO "E90"]
[WhiteElo "2470"]
[BlackElo "2407"]
[Annotator "ChessBase"]
[PlyCount "39"]
[EventDate "2019.09.01"]
[EventCountry "ESP"]
[SourceTitle "playchess.com"]
[Source "ChessBase"]
[SourceQuality "1"]
[TimeControl "5400+30"]

1. Nf3 {[%emt 0:02:22]} Nf6 {[%emt 0:05:27]} 2. c4 {[%emt 0:00:06]} d6 {[%emt 0:07:38]} 3. d4 {[%emt 0:00:28]} g6 {[%emt 0:00:23]} 4. Nc3 {[%emt 0:00:06]} c6 {[%emt 0:00:32]} 5. e4 {[%emt 0:00:11]} Bg7 {[%emt 0:01:31]} 6. Bd3 {[%emt 0:01:40]} O-O {[%emt 0:05:22]} 7. h3 {[%emt 0:00:25]} a6 {[%emt 0:00:25]} 8. Bg5 {[%emt 0:01:34]} b5 {[%emt 0:03:33]} 9. O-O {[%emt 0:03:34]} h6 {[%emt 0:06:43]} 10. Be3 {[%emt 0:01:57]} bxc4 {[%emt 0:02:55]} 11. Bxc4 {[%emt 0:00:15]} d5 {[%emt 0:00:09]} 12. Bd3 {[%emt 0:00:18]} dxe4 {[%emt 0:00:44]} 13. Nxe4 {[%emt 0:00:05]} Be6 {[%emt 0:01:55]} 14. Nxf6+ {[%emt 0:11:23]} exf6 {[%emt 0:00:25]} 15. Qc1 {[%emt 0:00:39]} Bd5 {[%emt 0:08:49]} 16. Ne1 {[%emt 0:01:11]} Kh7 {[%emt 0:01:23]} 17. Nc2 {[%emt 0:00:20]} a5 {[%emt 0:00:48]} 18. b4 {[%emt 0:02:41]} f5 {[%emt 0:05:09]} 19. Rd1 {[%emt 0:04:27]} Nd7 {[%emt 0:00:24]} 20. a4 {[%emt 0:02:12]} 1/2-1/2

[Event "XII Sabadell Open 2019"]
[Site "Sabadell"]
[Date "2019.09.08"]
[Round "7.4"]
[White "Arenas, David"]
[Black "Umetsubo, Cesar Hidemitsu"]
[Result "1-0"]
[ECO "B82"]
[WhiteElo "2454"]
[BlackElo "2403"]
[Annotator "ChessBase"]
[PlyCount "135"]
[EventDate "2019.09.01"]
[EventCountry "ESP"]
[SourceTitle "playchess.com"]
[Source "ChessBase"]
[SourceQuality "1"]
[TimeControl "5400+30"]

1. e4 {[%emt 0:00:00]} c5 {[%emt 0:01:54]} 2. Nf3 {[%emt 0:00:00]} e6 {[%emt 0:00:05]} 3. d4 {[%emt 0:00:00]} cxd4 {[%emt 0:00:04]} 4. Nxd4 {[%emt 0:00:00]} Nf6 {[%emt 0:00:06]} 5. Nc3 {[%emt 0:01:10]} d6 {[%emt 0:00:10]} 6. f4 {[%emt 0:00:10]} Nc6 {[%emt 0:02:33]} 7. Be3 {[%emt 0:01:14]} Be7 {[%emt 0:05:11]} 8. Qf3 {[%emt 0:00:57]} O-O {[%emt 0:03:40]} 9. Bd3 {[%emt 0:00:09]} Bd7 {[%emt 0:12:54]} 10. Nde2 {[%emt 0:06:25]} Nb4 {[%emt 0:10:23]} 11. O-O {[%emt 0:05:25]} e5 {[%emt 0:02:25]} 12. a3 {[%emt 0:03:48]} Nxd3 {[%emt 0:02:07]} 13. cxd3 {[%emt 0:00:08]} Bc6 {[%emt 0:01:28]} 14. d4 {[%emt 0:06:24]} Nxe4 {[%emt 0:08:26]} 15. Nxe4 {[%emt 0:01:51]} f5 {[%emt 0:00:03]} 16. d5 {[%emt 0:00:17]} fxe4 {[%emt 0:00:10]} 17. Qxe4 {[%emt 0:00:04]} Bb5 {[%emt 0:01:04]} 18. Rf2 {[%emt 0:04:24]} Bh4 {[%emt 0:11:33]} 19. g3 {[%emt 0:01:10]} Bxe2 {[%emt 0:05:13]} 20. Rxe2 {[%emt 0:00:45]} Bf6 {[%emt 0:00:16]} 21. Qb4 {[%emt 0:06:43]} Qd7 {[%emt 0:01:10]} 22. Rae1 {[%emt 0:00:16]} b6 {[%emt 0:03:36]} 23. fxe5 {[%emt 0:01:35]} Bxe5 {[%emt 0:00:14]} 24. Bd4 {[%emt 0:00:21]} Bxd4+ {[%emt 0:02:38]} 25. Qxd4 {[%emt 0:00:02]} Rf6 {[%emt 0:04:20]} 26. Re6 {[%emt 0:10:36]} Raf8 {[%emt 0:00:39]} 27. Kg2 {[%emt 0:00:45]} Qf7 {[%emt 0:05:03]} 28. Rxf6 {[%emt 0:00:24]} Qxf6 {[%emt 0:00:09]} 29. Qxf6 {[%emt 0:00:06]} Rxf6 {[%emt 0:00:03]} 30. Re7 {[%emt 0:01:29]} Rf7 {[%emt 0:02:04]} 31. Re8+ {[%emt 0:01:02]} Rf8 {[%emt 0:00:01]} 32. Re6 {[%emt 0:00:09]} Rf6 {[%emt 0:00:05]} 33. Rxf6 {[%emt 0:01:09]} gxf6 {[%emt 0:00:02]} 34. Kf3 {[%emt 0:00:05]} Kf7 {[%emt 0:02:24]} 35. Kf4 {[%emt 0:00:23]} Kg6 {[%emt 0:00:11]} 36. g4 {[%emt 0:00:11]} Kg7 {[%emt 0:05:08]} 37. Kf5 {[%emt 0:03:53]} Kf7 {[%emt 0:00:04]} 38. a4 {[%emt 0:00:55]} Ke7 {[%emt 0:01:04]} 39. b4 {[%emt 0:01:04]} a6 {[%emt 0:00:51]} 40. b5 {[%emt 0:00:52]} axb5 {[%emt 0:00:53]} 41. axb5 {[%emt 0:00:02]} Kf7 {[%emt 0:00:08]} 42. h3 {[%emt 0:01:11]} Ke7 {[%emt 0:00:08]} 43. h4 {[%emt 0:00:16]} Kf7 {[%emt 0:00:04]} 44. g5 {[%emt 0:00:43]} fxg5 {[%emt 0:00:06]} 45. hxg5 {[%emt 0:00:01]} Ke7 {[%emt 0:00:42]} 46. g6 {[%emt 0:00:30]} h6 {[%emt 0:00:22]} 47. g7 {[%emt 0:00:06]} Kf7 {[%emt 0:00:01]} 48. g8=Q+ {[%emt 0:00:07]} Kxg8 {[%emt 0:00:07]} 49. Ke6 {[%emt 0:00:08]} h5 {[%emt 0:00:59]} 50. Kxd6 {[%emt 0:00:05]} h4 {[%emt 0:00:04]} 51. Kc7 {[%emt 0:00:03]} h3 {[%emt 0:00:28]} 52. d6 {[%emt 0:00:06]} h2 {[%emt 0:00:05]} 53. d7 {[%emt 0:00:03]} h1=Q {[%emt 0:00:08]} 54. d8=Q+ {[%emt 0:00:07]} Kh7 {[%emt 0:00:59]} 55. Qd7+ {[%emt 0:00:22]} Kh8 {[%emt 0:00:13]} 56. Kxb6 {[%emt 0:00:13]} Qg1+ {[%emt 0:01:12]} 57. Kb7 {[%emt 0:00:51]} Qg2+ {[%emt 0:00:41]} 58. Qc6 {[%emt 0:00:44]} Qg7+ {[%emt 0:00:20]} 59. Qc7 {[%emt 0:00:14]} Qg2+ {[%emt 0:04:22]} 60. Kb8 {[%emt 0:00:09]} Qa2 {[%emt 0:00:53]} 61. b6 {[%emt 0:00:27]} Qa5 {[%emt 0:00:14]} 62. b7 {[%emt 0:01:15]} Qa4 {[%emt 0:00:27]} 63. Qd8+ {[%emt 0:01:45]} Kh7 {[%emt 0:00:04]} 64. Kc8 {[%emt 0:00:06]} Qa6 {[%emt 0:00:38]} 65. Qd5 {[%emt 0:00:37]} Kh8 {[%emt 0:00:26]} 66. Kc7 {[%emt 0:00:28]} Qa7 {[%emt 0:00:27]} 67. Qb5 {[%emt 0:00:13]} Kh7 {[%emt 0:01:03]} 68. Kc8 {[%emt 0:01:12]} 1-0

[Event "XII Sabadell Open 2019"]
[Site "Sabadell"]
[Date "2019.09.08"]
[Round "7.11"]
[White "Martinez Romero, Martin"]
[Black "Rivera, Ingris"]
[Result "1-0"]
[ECO "B88"]
[WhiteElo "2421"]
[BlackElo "2236"]
[Annotator "NA RC"]
[PlyCount "75"]
[EventDate "2019.09.01"]
[EventCountry "ESP"]
[SourceTitle "playchess.com"]
[Source "ChessBase"]
[SourceQuality "1"]
[TimeControl "5400+30"]

1. e4 {[%emt 0:00:00]} c5 {[%emt 0:00:27]} 2. Nf3 {[%emt 0:00:00]} d6 {[%emt 0:00:10]} 3. d4 {[%emt 0:00:07]} cxd4 {[%emt 0:00:16]} 4. Nxd4 {[%emt 0:00:08]} Nf6 {[%emt 0:00:12]} 5. Nc3 {[%emt 0:00:05]} a6 {[%emt 0:00:15]} 6. Bc4 {[%emt 0:00:06]} e6 {[%emt 0:00:13]} 7. Bb3 {[%emt 0:01:16]} Nbd7 {[%emt 0:00:34]} 8. O-O {[%emt 0:01:51]} Nc5 {[%emt 0:00:36]} 9. f4 {[%emt 0:02:01]} Nxb3 {[%emt 0:01:58]} 10. axb3 {[%emt 0:00:00]} Be7 {[%emt 0:03:40]} 11. Be3 {[%emt 0:01:43]} O-O {[%emt 0:00:06]} 12. Qf3 {[%emt 0:03:26]} Qc7 {[%emt 0:03:52]} 13. g4 {[%emt 0:00:00]} b5 {[%emt 0:09:41]} 14. Ndxb5 {[%emt 0:01:10]} axb5 {[%emt 0:01:07]} 15. Rxa8 {[%emt 0:00:00]} b4 {[%emt 0:00:37]} 16. Ra7 {[%emt 0:00:32]} Qc6 {[%emt 0:01:09]} 17. Ne2 {[%emt 0:00:22]} Bd8 {[%emt 0:01:11]} 18. Nd4 {[%emt 0:01:29]} Qxe4 {[%emt 0:00:54]} 19. Qxe4 {[%emt 0:00:14]} Nxe4 {[%emt 0:00:21]} 20. Nc6 {[%emt 0:00:20]} Nf6 {[%emt 0:12:04]} 21. Rd1 {[%emt 0:03:19]} Nd5 {[%emt 0:00:00]} 22. Bf2 {[%emt 0:04:29]} h5 {[%emt 0:04:15]} 23. gxh5 {[%emt 0:04:08]} Nxf4 {[%emt 0:02:46]} 24. Nxd8 {[%emt 0:03:30]} Rxd8 {[%emt 0:00:25]} 25. Bb6 {[%emt 0:00:30]} Re8 {[%emt 0:00:32]} 26. Rxd6 {[%emt 0:00:22]} e5 {[%emt 0:05:36]} 27. Kf2 {[%emt 0:06:59]} Be6 {[%emt 0:00:00]} 28. Rd8 {[%emt 0:01:31]} Rxd8 {[%emt 0:00:00]} 29. Bxd8 {[%emt 0:00:08]} Nd5 {[%emt 0:00:00]} 30. Ba5 {[%emt 0:01:59]} e4 {[%emt 0:00:00]} 31. c4 {[%emt 0:01:44]} bxc3 {[%emt 0:02:11]} 32. Bxc3 {[%emt 0:01:29]} Bg4 {[%emt 0:09:46]} 33. b4 {[%emt 0:02:15]} e3+ {[%emt 0:00:19]} 34. Kg3 {[%emt 0:01:05]} Bd1 {[%emt 0:00:44]} 35. Rd7 {[%emt 0:01:02]} Bb3 {[%emt 0:00:26]} 36. b5 {[%emt 0:08:52]} Bc4 {[%emt 0:11:29]} 37. b3 {[%emt 0:03:35]} Bxb3 {[%emt 0:02:02]} 38. b6 {[%emt 0:06:58]} 1-0

[Event "XII Sabadell Open 2019"]
[Site "Sabadell"]
[Date "2019.09.08"]
[Round "7.12"]
[White "Bedoya Rosales, Luis"]
[Black "Prats Rodriguez, Juan Bosco"]
[Result "1-0"]
[ECO "B08"]
[WhiteElo "1918"]
[BlackElo "1936"]
[Annotator "NA"]
[PlyCount "83"]
[EventDate "2019.09.01"]
[EventCountry "ESP"]
[SourceTitle "playchess.com"]
[Source "ChessBase"]
[SourceQuality "1"]
[TimeControl "5400+30"]

1. e4 {[%emt 0:03:52]} d6 {[%emt 0:00:25]} 2. d4 {[%emt 0:00:25]} Nf6 {[%emt 0:00:00]} 3. Nc3 {[%emt 0:00:08]} g6 {[%emt 0:00:08]} 4. Be3 {[%emt 0:00:50]} a6 {[%emt 0:00:00]} 5. a4 {[%emt 0:00:21]} Bg7 {[%emt 0:00:08]} 6. Be2 {[%emt 0:00:10]} Nc6 {[%emt 0:02:02]} 7. Nf3 {[%emt 0:00:28]} O-O {[%emt 0:00:06]} 8. O-O {[%emt 0:04:07]} e5 {[%emt 0:04:19]} 9. dxe5 {[%emt 0:00:00]} dxe5 {[%emt 0:14:14]} 10. h3 {[%emt 0:13:29]} Re8 {[%emt 0:03:00]} 11. Re1 {[%emt 0:01:24]} Be6 {[%emt 0:05:51]} 12. Ng5 {[%emt 0:01:45]} Nd4 {[%emt 0:04:26]} 13. Nxe6 {[%emt 0:07:52]} Nxe2+ {[%emt 0:04:09]} 14. Qxe2 {[%emt 0:01:32]} fxe6 {[%emt 0:06:37]} 15. a5 {[%emt 0:09:47]} Bf8 {[%emt 0:08:24]} 16. Qc4 {[%emt 0:11:24]} Bd6 {[%emt 0:00:00]} 17. Red1 {[%emt 0:07:12]} Qe7 {[%emt 0:01:18]} 18. Na4 {[%emt 0:06:06]} Kf7 {[%emt 0:05:11]} 19. Rd3 {[%emt 0:00:00]} Nd7 {[%emt 0:02:22]} 20. Rad1 {[%emt 0:07:44]} Red8 {[%emt 0:05:03]} 21. c3 {[%emt 0:03:53]} Kg7 {[%emt 0:05:07]} 22. b4 {[%emt 0:02:22]} Kf7 {[%emt 0:03:44]} 23. Qa2 {[%emt 0:06:08]} Qh4 {[%emt 0:04:37]} 24. f3 {[%emt 0:04:03]} Nf8 {[%emt 0:04:49]} 25. Qf2 {[%emt 0:03:15]} Qxf2+ {[%emt 0:01:00]} 26. Kxf2 {[%emt 0:00:24]} Ke8 {[%emt 0:04:00]} 27. Ke2 {[%emt 0:04:06]} Rab8 {[%emt 0:00:00]} 28. Bg5 {[%emt 0:00:39]} Be7 {[%emt 0:02:35]} 29. Rxd8+ {[%emt 0:00:28]} Rxd8 {[%emt 0:00:00]} 30. Rxd8+ {[%emt 0:00:19]} Bxd8 {[%emt 0:00:00]} 31. Bxd8 {[%emt 0:00:23]} Kxd8 {[%emt 0:00:00]} 32. Nc5 {[%emt 0:00:10]} Kc8 {[%emt 0:00:00]} 33. h4 {[%emt 0:02:23]} Kb8 {[%emt 0:03:11]} 34. Ke3 {[%emt 0:00:00]} Ka7 {[%emt 0:00:10]} 35. f4 {[%emt 0:00:00]} b6 {[%emt 0:01:05]} 36. Nd3 {[%emt 0:00:00]} exf4+ {[%emt 0:00:45]} 37. Kxf4 {[%emt 0:00:04]} Kb7 {[%emt 0:00:43]} 38. Ke5 {[%emt 0:01:08]} Kc6 {[%emt 0:00:06]} 39. c4 {[%emt 0:00:34]} bxa5 {[%emt 0:00:23]} 40. bxa5 {[%emt 0:00:06]} h6 {[%emt 0:00:54]} 41. Kf6 {[%emt 0:01:08]} Kd6 {[%emt 0:02:08]} 42. e5+ {[%emt 0:00:00] Kd5} 1-0

[Event "XII Sabadell Open 2019"]
[Site "Sabadell"]
[Date "2019.09.08"]
[Round "7.14"]
[White "Alcon Davalos, Marc"]
[Black "Ribera Caro, Joan"]
[Result "1/2-1/2"]
[ECO "C01"]
[WhiteElo "1459"]
[BlackElo "1342"]
[Annotator "NA"]
[PlyCount "65"]
[EventDate "2019.09.01"]
[EventCountry "ESP"]
[SourceTitle "playchess.com"]
[Source "ChessBase"]
[SourceQuality "1"]
[TimeControl "5400+30"]

1. e4 {[%emt 0:00:00]} e6 {[%emt 0:00:00]} 2. d4 {[%emt 0:00:03]} d5 {[%emt 0:00:00]} 3. exd5 {[%emt 0:00:11]} exd5 {[%emt 0:00:05]} 4. Bd3 {[%emt 0:00:27]} Bd6 {[%emt 0:01:02]} 5. Nf3 {[%emt 0:00:50]} Bg4 {[%emt 0:01:23]} 6. h3 {[%emt 0:00:39]} Bh5 {[%emt 0:00:00]} 7. Be3 {[%emt 0:00:25]} Ne7 {[%emt 0:00:43]} 8. Nbd2 {[%emt 0:00:19]} Nbc6 {[%emt 0:00:28]} 9. c3 {[%emt 0:00:08]} Qd7 {[%emt 0:00:00]} 10. Qc2 {[%emt 0:01:59]} h6 {[%emt 0:00:41]} 11. b4 {[%emt 0:10:43]} g5 {[%emt 0:06:20]} 12. a3 {[%emt 0:00:00]} f5 {[%emt 0:01:32]} 13. Nb3 {[%emt 0:04:19]} Bxf3 {[%emt 0:06:49]} 14. gxf3 {[%emt 0:00:00]} O-O-O {[%emt 0:01:59]} 15. Nc5 {[%emt 0:02:35]} Bxc5 {[%emt 0:02:10]} 16. bxc5 {[%emt 0:00:00]} f4 {[%emt 0:01:45]} 17. Bd2 {[%emt 0:00:52]} Rde8 {[%emt 0:01:58]} 18. Kd1 {[%emt 0:07:06]} Na5 {[%emt 0:04:03]} 19. Rb1 {[%emt 0:00:00]} Nc4 {[%emt 0:05:26]} 20. Qb3 {[%emt 0:06:06]} Qc6 {[%emt 0:00:39]} 21. Kc2 {[%emt 0:06:09]} Kb8 {[%emt 0:13:39]} 22. Rhg1 {[%emt 0:00:00]} Ng6 {[%emt 0:32:10]} 23. Bxc4 {[%emt 0:06:02]} dxc4 {[%emt 0:00:00]} 24. Qxc4 {[%emt 0:04:13]} Rd8 {[%emt 0:03:54]} 25. Rge1 {[%emt 0:03:35]} Nh4 {[%emt 0:00:00]} 26. Re6 {[%emt 0:05:05]} Rd6 {[%emt 0:00:00]} 27. Rxd6 {[%emt 0:19:39]} cxd6 {[%emt 0:00:00]} 28. Qe6 {[%emt 0:00:27]} Nxf3 {[%emt 0:00:00]} 29. Qxd6+ {[%emt 0:02:46]} Qxd6 {[%emt 0:00:00]} 30. cxd6 {[%emt 0:00:00]} Rd8 {[%emt 0:00:00]} 31. Kd3 {[%emt 0:00:00]} Rxd6 {[%emt 0:00:00]} 32. Ke2 {[%emt 0:00:22]} Nh4 {[%emt 0:00:24]} 33. f3 {[%emt 0:04:47]} 1/2-1/2